[Event "Fagernes Open 2021"]
[Site "Fagernes"]
[Date "2021.10.12"]
[Round "4.12"]
[White "Galinsky, Misha"]
[Black "Shehzad, Alina"]
[Result "1-0"]
[ECO "E01"]
[WhiteElo "1756"]
[BlackElo "1189"]
[Annotator "NA"]
[PlyCount "53"]
[EventDate "2021.10.10"]
[EventCountry "NOR"]
[SourceTitle "playchess.com"]
[Source "ChessBase"]
[SourceQuality "1"]
[TimeControl "40/5400+30:1800+30"]

1. d4 {[%emt 0:00:00]} e6 {[%emt 0:00:00]} 2. c4 {[%emt 0:00:00]} Nf6 {[%emt 0:00:00]} 3. g3 {[%emt 0:00:00]} d5 {[%emt 0:00:00]} 4. Nf3 {[%emt 0:00:00]} c5 {[%emt 0:00:00]} 5. cxd5 {[%emt 0:00:00]} Nxd5 {[%emt 0:00:00]} 6. e4 {[%emt 0:00:00]} Nf6 {[%emt 0:00:00]} 7. Nc3 {[%emt 0:00:00]} Nc6 {[%emt 0:00:00]} 8. d5 {[%emt 0:03:02]} exd5 {[%emt 0:04:45]} 9. exd5 {[%emt 0:00:42]} Nb4 {[%emt 0:00:57]} 10. Bb5+ {[%emt 0:01:56]} Bd7 {[%emt 0:02:46]} 11. d6 {[%emt 0:04:24]} a6 {[%emt 0:07:40]} 12. Qe2+ {[%emt 0:00:19]} Be7 {[%emt 0:03:25]} 13. Bxd7+ {[%emt 0:00:08]} Qxd7 {[%emt 0:01:03]} 14. dxe7 {[%emt 0:00:40]} Qf5 {[%emt 0:04:17]} 15. O-O {[%emt 0:03:39]} Nc6 {[%emt 0:02:20]} 16. Re1 {[%emt 0:04:56]} h6 {[%emt 0:14:49]} 17. Ne4 {[%emt 0:01:40]} Nxe4 {[%emt 0:02:26]} 18. Qxe4 {[%emt 0:00:12]} Qf6 {[%emt 0:01:19]} 19. Be3 {[%emt 0:00:42]} b6 {[%emt 0:06:36]} 20. Ne5 {[%emt 0:03:08]} Rc8 {[%emt 0:03:41]} 21. Nxc6 {[%emt 0:00:21]} Rxc6 {[%emt 0:00:14]} 22. Rad1 {[%emt 0:00:30]} Rc8 {[%emt 0:05:59]} 23. Qb7 {[%emt 0:00:09]} Qf5 {[%emt 0:00:55]} 24. Bf4 {[%emt 0:00:18]} f6 {[%emt 0:03:02]} 25. Rd8+ {[%emt 0:00:08]} Rxd8 {[%emt 0:00:26]} 26. exd8=R+ {[%emt 0:00:07]} Kxd8 {[%emt 0:00:18]} 27. Qc7# {[%emt 0:00:08]} 1-0

[Event "Fagernes Open 2021"]
[Site "Fagernes"]
[Date "2021.10.12"]
[Round "4.14"]
[White "Lye, Sigurd"]
[Black "Rynning, Rune Kleiven"]
[Result "1-0"]
[ECO "B51"]
[WhiteElo "1821"]
[BlackElo "1721"]
[Annotator "NA"]
[PlyCount "65"]
[EventDate "2021.10.10"]
[EventCountry "NOR"]
[SourceTitle "playchess.com"]
[Source "ChessBase"]
[SourceQuality "1"]
[TimeControl "40/5400+30:1800+30"]

1. e4 {[%emt 0:00:00]} c5 {[%emt 0:00:00]} 2. Nf3 {[%emt 0:00:00]} d6 {[%emt 0:00:00]} 3. Bb5+ {[%emt 0:00:00]} Nd7 {[%emt 0:00:00]} 4. Ba4 {[%emt 0:00:00]} Ngf6 {[%emt 0:00:00]} 5. O-O {[%emt 0:00:00]} a6 {[%emt 0:05:06]} 6. c4 {[%emt 0:00:00]} e6 {[%emt 0:07:44]} 7. Nc3 {[%emt 0:00:00]} Be7 {[%emt 0:04:27]} 8. d3 {[%emt 0:00:00]} O-O {[%emt 0:00:34]} 9. a3 {[%emt 0:00:00]} b6 {[%emt 0:01:57]} 10. Rb1 {[%emt 0:00:00]} Bb7 {[%emt 0:01:36]} 11. h3 {[%emt 0:00:00]} Qc7 {[%emt 0:01:23]} 12. Bf4 {[%emt 0:01:23]} Rfd8 {[%emt 0:08:40]} 13. Qe2 {[%emt 0:06:13]} Rac8 {[%emt 0:07:19]} 14. Bh2 {[%emt 0:07:28]} Bc6 {[%emt 0:06:50]} 15. Bc2 {[%emt 0:07:41]} Qb7 {[%emt 0:00:12]} 16. b4 {[%emt 0:01:40]} Qa8 {[%emt 0:09:18]} 17. Rfd1 {[%emt 0:15:27]} b5 {[%emt 0:12:33]} 18. bxc5 {[%emt 0:12:08]} dxc5 {[%emt 0:00:32]} 19. cxb5 {[%emt 0:00:47]} axb5 {[%emt 0:00:44]} 20. Nxb5 {[%emt 0:00:49]} c4 {[%emt 0:11:39]} 21. Bd6 {[%emt 0:22:56]} cxd3 {[%emt 0:01:48]} 22. Bxd3 {[%emt 0:00:29]} Bxb5 {[%emt 0:06:57]} 23. Bxe7 {[%emt 0:00:36]} Bxd3 {[%emt 0:00:18]} 24. Rxd3 {[%emt 0:02:53]} Re8 {[%emt 0:00:11]} 25. Bb4 {[%emt 0:01:48]} Nc5 {[%emt 0:00:58]} 26. Bxc5 {[%emt 0:01:38]} Rxc5 {[%emt 0:01:05]} 27. Nd2 {[%emt 0:01:59]} Rec8 {[%emt 0:01:15]} 28. Rdb3 {[%emt 0:03:15]} Rc1+ {[%emt 0:02:37]} 29. Rxc1 {[%emt 0:00:46]} Rxc1+ {[%emt 0:00:03]} 30. Kh2 {[%emt 0:00:17]} Ra1 {[%emt 0:03:01]} 31. Qa6 {[%emt 0:03:12]} Qd8 {[%emt 0:03:12]} 32. Qa5 {[%emt 0:04:51]} Qe7 {[%emt 0:02:11]} 33. Rb7 {[%emt 0:09:04]} 1-0

[Event "Fagernes Open 2021"]
[Site "Fagernes"]
[Date "2021.10.12"]
[Round "4.15"]
[White "Sekkingstad, Thomas"]
[Black "Eiding, Amanda Mai Irgens"]
[Result "1-0"]
[ECO "D43"]
[WhiteElo "1812"]
[BlackElo "1639"]
[Annotator "NA"]
[PlyCount "71"]
[EventDate "2021.10.10"]
[EventCountry "NOR"]
[SourceTitle "playchess.com"]
[Source "ChessBase"]
[SourceQuality "1"]
[TimeControl "40/5400+30:1800+30"]

1. d4 {[%emt 0:00:00]} d5 {[%emt 0:00:00]} 2. c4 {[%emt 0:00:00]} c6 {[%emt 0:00:00]} 3. Nf3 {[%emt 0:00:00]} Nf6 {[%emt 0:00:00]} 4. Nc3 {[%emt 0:00:00]} e6 {[%emt 0:00:00]} 5. Bg5 {[%emt 0:00:00]} h6 {[%emt 0:00:00]} 6. Bh4 {[%emt 0:00:00]} dxc4 {[%emt 0:00:00]} 7. Ne5 {[%emt 0:00:00]} b5 {[%emt 0:00:00]} 8. a4 {[%emt 0:00:00]} a6 {[%emt 0:00:00]} 9. axb5 {[%emt 0:00:00]} g5 {[%emt 0:00:00]} 10. Bg3 {[%emt 0:00:00]} cxb5 {[%emt 0:00:00]} 11. Nxb5 {[%emt 0:00:41]} Bb4+ {[%emt 0:00:00]} 12. Nc3 {[%emt 0:00:06]} Nd5 {[%emt 0:05:28]} 13. Qc2 {[%emt 0:04:08]} Bb7 {[%emt 0:26:45]} 14. e3 {[%emt 0:02:33]} Nd7 {[%emt 0:24:47]} 15. h4 {[%emt 0:22:36]} N7b6 {[%emt 0:07:01]} 16. Be2 {[%emt 0:15:01]} Rc8 {[%emt 0:00:50]} 17. Bf3 {[%emt 0:01:38]} h5 {[%emt 0:11:56]} 18. Qd2 {[%emt 0:10:26]} g4 {[%emt 0:04:02]} 19. Be4 {[%emt 0:00:24]} a5 {[%emt 0:01:52]} 20. O-O {[%emt 0:09:28]} f5 {[%emt 0:07:06]} 21. Bc2 {[%emt 0:00:45]} Nf6 {[%emt 0:00:20]} 22. Qe2 {[%emt 0:02:22]} Bxc3 {[%emt 0:00:33]} 23. bxc3 {[%emt 0:00:07]} Qd5 {[%emt 0:00:08]} 24. f3 {[%emt 0:01:12]} gxf3 {[%emt 0:00:05]} 25. Nxf3 {[%emt 0:00:12]} Rg8 {[%emt 0:00:18]} 26. Ng5 {[%emt 0:00:30]} Ng4 {[%emt 0:00:58]} 27. e4 {[%emt 0:00:49]} Qc6 {[%emt 0:02:14]} 28. exf5 {[%emt 0:00:34]} Ne3 {[%emt 0:00:57]} 29. Be4 {[%emt 0:01:33]} Nbd5 {[%emt 0:01:09]} 30. f6 {[%emt 0:03:05]} Rf8 {[%emt 0:01:34]} 31. f7+ {[%emt 0:02:00]} Ke7 {[%emt 0:00:31]} 32. Rfc1 {[%emt 0:01:01]} Ng4 {[%emt 0:02:03]} 33. Rxa5 {[%emt 0:00:37]} Qb6 {[%emt 0:01:41]} 34. Bxd5 {[%emt 0:01:16]} Bxd5 {[%emt 0:00:08]} 35. Rxd5 {[%emt 0:00:20]} Nf6 {[%emt 0:01:32]} 36. Rd6 {[%emt 0:00:13]} 1-0

[Event "Fagernes Open 2021"]
[Site "Fagernes"]
[Date "2021.10.12"]
[Round "4.16"]
[White "Cross, Jamie"]
[Black "Evenshaug, Amadeus Hestvik"]
[Result "1-0"]
[ECO "D02"]
[WhiteElo "1761"]
[BlackElo "1609"]
[Annotator "NA RC"]
[PlyCount "111"]
[EventDate "2021.10.10"]
[EventCountry "NOR"]
[SourceTitle "playchess.com"]
[Source "ChessBase"]
[SourceQuality "1"]
[TimeControl "40/5400+30:1800+30"]

1. d4 {[%emt 0:00:00]} Nf6 {[%emt 0:00:00]} 2. Bf4 {[%emt 0:00:00]} d5 {[%emt 0:00:00]} 3. e3 {[%emt 0:00:00]} e6 {[%emt 0:00:00]} 4. Nf3 {[%emt 0:00:00]} Nbd7 {[%emt 0:00:00]} 5. Nbd2 {[%emt 0:00:00]} Be7 {[%emt 0:00:00]} 6. h3 {[%emt 0:00:00]} c6 {[%emt 0:00:00]} 7. Bd3 {[%emt 0:00:00]} b6 {[%emt 0:00:00]} 8. O-O {[%emt 0:00:00]} Bb7 {[%emt 0:00:00]} 9. Ne5 {[%emt 0:00:51]} Nxe5 {[%emt 0:00:00]} 10. dxe5 {[%emt 0:01:37]} Nd7 {[%emt 0:00:39]} 11. Qg4 {[%emt 0:01:30]} g6 {[%emt 0:15:24]} 12. c4 {[%emt 0:18:51]} Nc5 {[%emt 0:07:34]} 13. Be2 {[%emt 0:06:08]} h5 {[%emt 0:10:53]} 14. Qf3 {[%emt 0:00:21]} Bg5 {[%emt 0:00:37]} 15. cxd5 {[%emt 0:06:16]} exd5 {[%emt 0:02:04]} 16. e4 {[%emt 0:03:14]} O-O {[%emt 0:10:59]} 17. exd5 {[%emt 0:02:39]} cxd5 {[%emt 0:02:47]} 18. Rad1 {[%emt 0:10:10]} d4 {[%emt 0:06:44]} 19. Qg3 {[%emt 0:00:29]} Bh4 {[%emt 0:06:09]} 20. Qa3 {[%emt 0:03:15]} Ne6 {[%emt 0:13:21]} 21. Bg3 {[%emt 0:07:49]} Be7 {[%emt 0:04:25]} 22. Qd3 {[%emt 0:01:03]} Nc5 {[%emt 0:01:03]} 23. Qb1 {[%emt 0:00:21]} d3 {[%emt 0:07:17]} 24. Bf3 {[%emt 0:00:52]} Bxf3 {[%emt 0:00:29]} 25. Nxf3 {[%emt 0:00:23]} a5 {[%emt 0:06:23]} 26. Ne1 {[%emt 0:01:51]} Qd4 {[%emt 0:01:04]} 27. Nxd3 {[%emt 0:01:56]} Nxd3 {[%emt 0:00:56]} 28. Rxd3 {[%emt 0:00:30]} Qb4 {[%emt 0:00:36]} 29. Rb3 {[%emt 0:04:40]} Qc5 {[%emt 0:01:41]} 30. Rc1 {[%emt 0:00:38]} Qd4 {[%emt 0:00:12]} 31. Rd1 {[%emt 0:04:12]} Qc5 {[%emt 0:00:17]} 32. Rd7 {[%emt 0:00:36]} Rae8 {[%emt 0:02:19]} 33. e6 {[%emt 0:08:13]} Kg7 {[%emt 0:01:18]} 34. Rc3 {[%emt 0:05:04]} Qg5 {[%emt 0:01:08]} 35. exf7 {[%emt 0:05:17]} Rxf7 {[%emt 0:00:11]} 36. Rcc7 {[%emt 0:00:23]} Ref8 {[%emt 0:00:28]} 37. Qe4 {[%emt 0:03:06]} Bc5 {[%emt 0:01:14]} 38. Be5+ {[%emt 0:03:39]} Kg8 {[%emt 0:00:21]} 39. Rxf7 {[%emt 0:00:20]} Rxf7 {[%emt 0:00:15]} 40. Qa8+ {[%emt 0:02:10]} Bf8 {[%emt 0:00:53]} 41. Rxf7 {[%emt 0:31:29]} Kxf7 {[%emt 0:30:34]} 42. Qd5+ {[%emt 0:00:00]} Ke8 {[%emt 0:00:00]} 43. Qe6+ {[%emt 0:00:00]} Be7 {[%emt 0:00:00]} 44. Bd6 {[%emt 0:00:00]} Qc1+ {[%emt 0:00:00]} 45. Kh2 {[%emt 0:00:00]} Qg5 {[%emt 0:00:00]} 46. Qxe7+ {[%emt 0:00:00]} Qxe7 {[%emt 0:00:00]} 47. Bxe7 {[%emt 0:00:00]} Kxe7 {[%emt 0:00:00]} 48. Kg3 {[%emt 0:00:00]} Kf6 {[%emt 0:00:00]} 49. Kf4 {[%emt 0:00:00]} g5+ {[%emt 0:00:00]} 50. Ke4 {[%emt 0:00:00]} Ke6 {[%emt 0:00:00]} 51. g4 {[%emt 0:00:00]} hxg4 {[%emt 0:00:00]} 52. hxg4 {[%emt 0:00:00]} b5 {[%emt 0:00:00]} 53. a3 {[%emt 0:00:00]} b4 {[%emt 0:00:00]} 54. axb4 {[%emt 0:00:00]} axb4 {[%emt 0:00:00]} 55. b3 {[%emt 0:00:00]} Kf6 {[%emt 0:00:00]} 56. Kd5 {[%emt 0:00:00]} 1-0

[Event "Fagernes Open 2021"]
[Site "Fagernes"]
[Date "2021.10.12"]
[Round "4.17"]
[White "Johannessen, Theo N"]
[Black "Erikstad, Olav Aage"]
[Result "1-0"]
[ECO "D44"]
[WhiteElo "1668"]
[BlackElo "1761"]
[Annotator "NA"]
[PlyCount "131"]
[EventDate "2021.10.10"]
[EventCountry "NOR"]
[SourceTitle "playchess.com"]
[Source "ChessBase"]
[SourceQuality "1"]
[TimeControl "40/5400+30:1800+30"]

1. d4 {[%emt 0:00:00]} c6 {[%emt 0:00:00]} 2. Nf3 {[%emt 0:00:00]} d5 {[%emt 0:00:00]} 3. c4 {[%emt 0:00:00]} Nf6 {[%emt 0:00:00]} 4. Nc3 {[%emt 0:00:00]} e6 {[%emt 0:00:00]} 5. Bg5 {[%emt 0:00:00]} dxc4 {[%emt 0:00:00]} 6. e4 {[%emt 0:00:00]} b5 {[%emt 0:00:00]} 7. e5 {[%emt 0:00:00]} h6 {[%emt 0:00:00]} 8. Bh4 {[%emt 0:00:00]} g5 {[%emt 0:00:00]} 9. exf6 {[%emt 0:00:00]} gxh4 {[%emt 0:00:00]} 10. Ne5 {[%emt 0:00:00]} Qxf6 {[%emt 0:00:00]} 11. g3 {[%emt 0:00:00]} Bb7 {[%emt 0:00:00]} 12. Bg2 {[%emt 0:00:00]} a6 {[%emt 0:00:00]} 13. a4 {[%emt 0:00:00]} Bb4 {[%emt 0:00:00]} 14. axb5 {[%emt 0:03:57]} h3 {[%emt 0:12:40]} 15. Bf3 {[%emt 0:05:25]} axb5 {[%emt 0:01:12]} 16. Rxa8 {[%emt 0:01:15]} Bxa8 {[%emt 0:00:01]} 17. Qa1 {[%emt 0:00:21]} O-O {[%emt 0:00:08]} 18. Qxa8 {[%emt 0:01:13]} Nd7 {[%emt 0:03:59]} 19. Qxc6 {[%emt 0:03:20]} Nxe5 {[%emt 0:00:28]} 20. dxe5 {[%emt 0:00:09]} Qxe5+ {[%emt 0:00:10]} 21. Qe4 {[%emt 0:01:45]} Bxc3+ {[%emt 0:01:01]} 22. bxc3 {[%emt 0:00:03]} Qxc3+ {[%emt 0:00:08]} 23. Kf1 {[%emt 0:01:41]} Qc1+ {[%emt 0:01:25]} 24. Qe1 {[%emt 0:00:16]} Qb2 {[%emt 0:02:19]} 25. Qe2 {[%emt 0:00:45]} Qc1+ {[%emt 0:01:07]} 26. Qd1 {[%emt 0:01:57]} Qb2 {[%emt 0:01:57]} 27. Be4 {[%emt 0:04:31]} f5 {[%emt 0:00:58]} 28. Qb1 {[%emt 0:16:57]} Qd4 {[%emt 0:03:36]} 29. Bf3 {[%emt 0:01:44]} e5 {[%emt 0:02:52]} 30. Qd1 {[%emt 0:01:27]} Rd8 {[%emt 0:03:24]} 31. Qxd4 {[%emt 0:00:12]} exd4 {[%emt 0:01:20]} 32. Ke2 {[%emt 0:05:31]} d3+ {[%emt 0:00:48]} 33. Ke3 {[%emt 0:05:33]} d2 {[%emt 0:00:34]} 34. Bd1 {[%emt 0:01:16]} Re8+ {[%emt 0:00:01]} 35. Kxd2 {[%emt 0:00:26]} b4 {[%emt 0:01:13]} 36. Bf3 {[%emt 0:04:57]} Rd8+ {[%emt 0:01:20]} 37. Kc1 {[%emt 0:04:11]} c3 {[%emt 0:00:54]} 38. Rd1 {[%emt 0:00:43]} Re8 {[%emt 0:02:40]} 39. Kc2 {[%emt 0:01:27]} Kg7 {[%emt 0:01:28]} 40. Kb3 {[%emt 0:02:29]} Rb8 {[%emt 0:00:18]} 41. Rd4 {[%emt 0:33:11]} Kf6 {[%emt 0:37:42]} 42. Bd1 {[%emt 0:02:21]} Ke5 {[%emt 0:03:04]} 43. Rf4 {[%emt 0:14:32]} Ra8 {[%emt 0:06:31]} 44. Bc2 {[%emt 0:01:49]} Ra1 {[%emt 0:02:31]} 45. Rxf5+ {[%emt 0:00:50]} Kd4 {[%emt 0:02:55]} 46. Rf4+ {[%emt 0:01:04]} Kc5 {[%emt 0:00:27]} 47. Rc4+ {[%emt 0:00:10]} Kd5 {[%emt 0:01:03]} 48. Rh4 {[%emt 0:00:41]} Ra3+ {[%emt 0:00:42]} 49. Kxb4 {[%emt 0:00:13]} Ra1 {[%emt 0:01:09]} 50. Kxc3 {[%emt 0:03:06]} Rf1 {[%emt 0:00:36]} 51. f4 {[%emt 0:01:23]} Rf3+ {[%emt 0:00:26]} 52. Bd3 {[%emt 0:00:15]} Ke6 {[%emt 0:01:00]} 53. Rxh6+ {[%emt 0:00:28]} Kf7 {[%emt 0:00:24]} 54. Rxh3 {[%emt 0:00:21]} Kg7 {[%emt 0:00:14]} 55. Rh5 {[%emt 0:00:40]} Kg8 {[%emt 0:00:21]} 56. Kd4 {[%emt 0:00:27]} Kg7 {[%emt 0:00:23]} 57. Ke4 {[%emt 0:00:24]} Rf2 {[%emt 0:00:21]} 58. Kf5 {[%emt 0:00:41]} Rb2 {[%emt 0:01:30]} 59. Kg5 {[%emt 0:00:37]} Kg8 {[%emt 0:01:22]} 60. f5 {[%emt 0:00:40]} Rb4 {[%emt 0:00:58]} 61. f6 {[%emt 0:00:38]} Rb7 {[%emt 0:01:47]} 62. Bc4+ {[%emt 0:00:24]} Rf7 {[%emt 0:00:31]} 63. Bxf7+ {[%emt 0:00:16]} Kf8 {[%emt 0:00:02]} 64. Bg6 {[%emt 0:00:23]} Kg8 {[%emt 0:00:40]} 65. f7+ {[%emt 0:00:19]} Kg7 {[%emt 0:00:25]} 66. Rh7+ {[%emt 0:00:08]} 1-0

[Event "Fagernes Open 2021"]
[Site "Fagernes"]
[Date "2021.10.13"]
[Round "5.2"]
[White "Kittilsen, Sigurd"]
[Black "Fiskaaen, Martin Holten"]
[Result "1-0"]
[ECO "B67"]
[WhiteElo "1881"]
[BlackElo "1829"]
[Annotator "NA"]
[PlyCount "155"]
[EventDate "2021.10.10"]
[EventCountry "NOR"]
[SourceTitle "playchess.com"]
[Source "ChessBase"]
[SourceQuality "1"]
[TimeControl "40/5400+30:1800+30"]

1. e4 {[%emt 0:00:00]} c5 {[%emt 0:00:00]} 2. Nf3 {[%emt 0:00:00]} d6 {[%emt 0:00:00]} 3. d4 {[%emt 0:00:00]} cxd4 {[%emt 0:00:00]} 4. Nxd4 {[%emt 0:00:00]} Nf6 {[%emt 0:00:00]} 5. Nc3 {[%emt 0:00:00]} Nc6 {[%emt 0:00:00]} 6. Bg5 {[%emt 0:00:00]} e6 {[%emt 0:00:00]} 7. Qd2 {[%emt 0:00:00]} a6 {[%emt 0:00:00]} 8. O-O-O {[%emt 0:00:00]} Bd7 {[%emt 0:00:00]} 9. f3 {[%emt 0:00:00]} Nxd4 {[%emt 0:00:00]} 10. Qxd4 {[%emt 0:00:00]} Be7 {[%emt 0:00:00]} 11. h4 {[%emt 0:00:00]} Qc7 {[%emt 0:02:08]} 12. g4 {[%emt 0:02:00]} b5 {[%emt 0:02:10]} 13. Be3 {[%emt 0:02:15]} O-O {[%emt 0:02:14]} 14. g5 {[%emt 0:02:20]} Nh5 {[%emt 0:00:50]} 15. Bh3 {[%emt 0:03:21]} b4 {[%emt 0:07:22]} 16. Qxb4 {[%emt 0:04:56]} Rab8 {[%emt 0:00:27]} 17. Qd4 {[%emt 0:01:02]} Rfc8 {[%emt 0:10:38]} 18. Bg4 {[%emt 0:16:54]} Nf6 {[%emt 0:01:44]} 19. gxf6 {[%emt 0:34:12]} Bxf6 {[%emt 0:00:39]} 20. Qxd6 {[%emt 0:00:17]} Bxc3 {[%emt 0:12:26]} 21. bxc3 {[%emt 0:01:50]} Qxc3 {[%emt 0:02:25]} 22. Qd3 {[%emt 0:03:07]} Qb2+ {[%emt 0:02:55]} 23. Kd2 {[%emt 0:00:11]} Bb5 {[%emt 0:06:17]} 24. Bd4 {[%emt 0:07:17]} Qb4+ {[%emt 0:41:10]} 25. c3 {[%emt 0:00:29]} Qa3 {[%emt 0:00:09]} 26. Qc2 {[%emt 0:00:59]} Ba4 {[%emt 0:00:16]} 27. Qc1 {[%emt 0:00:18]} Rb2+ {[%emt 0:00:28]} 28. Ke3 {[%emt 0:01:42]} Bxd1 {[%emt 0:03:16]} 29. Rxd1 {[%emt 0:03:04]} Qxa2 {[%emt 0:00:11]} 30. Rd2 {[%emt 0:01:10]} Rcb8 {[%emt 0:00:38]} 31. Be5 {[%emt 0:01:10]} Rxd2 {[%emt 0:01:44]} 32. Qxd2 {[%emt 0:00:31]} Qxd2+ {[%emt 0:00:18]} 33. Kxd2 {[%emt 0:00:04]} Rb5 {[%emt 0:01:14]} 34. f4 {[%emt 0:00:58]} g6 {[%emt 0:01:39]} 35. c4 {[%emt 0:01:03]} Rc5 {[%emt 0:00:42]} 36. Kc3 {[%emt 0:00:45]} a5 {[%emt 0:00:39]} 37. Bd6 {[%emt 0:00:12]} Rc8 {[%emt 0:00:41]} 38. c5 {[%emt 0:06:37]} h6 {[%emt 0:00:43]} 39. e5 {[%emt 0:00:17]} f5 {[%emt 0:03:19]} 40. Bd1 {[%emt 0:02:08]} Kf7 {[%emt 0:00:30]} 41. Ba4 {[%emt 0:30:38]} g5 {[%emt 0:30:11]} 42. fxg5 {[%emt 0:02:00]} hxg5 {[%emt 0:00:09]} 43. hxg5 {[%emt 0:00:22]} f4 {[%emt 0:00:23]} 44. Kd3 {[%emt 0:00:00]} Kg6 {[%emt 0:00:00]} 45. Bd7 {[%emt 0:00:00]} Ra8 {[%emt 0:00:00]} 46. Bxe6 {[%emt 0:00:00]} a4 {[%emt 0:00:00]} 47. c6 {[%emt 0:00:00]} a3 {[%emt 0:00:00]} 48. c7 {[%emt 0:00:00]} f3 {[%emt 0:00:00]} 49. Ba2 {[%emt 0:00:00]} Kxg5 {[%emt 0:00:00]} 50. Ke3 {[%emt 0:00:00]} Kg4 {[%emt 0:00:00]} 51. e6 {[%emt 0:00:26]} f2 {[%emt 0:00:00]} 52. Kxf2 {[%emt 0:00:15]} Kf5 {[%emt 0:00:00]} 53. Ke3 {[%emt 0:02:06]} Kg6 {[%emt 0:00:00]} 54. e7 {[%emt 0:01:02]} Kf6 {[%emt 0:00:00]} 55. Kd4 {[%emt 0:02:23]} Rc8 {[%emt 0:00:00]} 56. Kc5 {[%emt 0:00:36]} Rxc7+ {[%emt 0:00:00]} 57. Bxc7 {[%emt 0:00:05]} Kxe7 {[%emt 0:00:00]} 58. Bf4 {[%emt 0:00:38]} Kf6 {[%emt 0:00:00]} 59. Bc1 {[%emt 0:00:24]} Kf5 {[%emt 0:00:00]} 60. Bxa3 {[%emt 0:00:08]} Ke5 {[%emt 0:00:00]} 61. Bb2+ {[%emt 0:00:17]} Ke4 {[%emt 0:00:00]} 62. Bb1+ {[%emt 0:00:13]} Kf4 {[%emt 0:00:00]} 63. Kd4 {[%emt 0:00:31]} Kf3 {[%emt 0:00:00]} 64. Bc1 {[%emt 0:00:14]} Ke2 {[%emt 0:00:00]} 65. Bc2 {[%emt 0:00:11]} Kf2 {[%emt 0:00:00]} 66. Ke4 {[%emt 0:00:33]} Kg3 {[%emt 0:00:00]} 67. Bd1 {[%emt 0:00:08]} Kf2 {[%emt 0:00:00]} 68. Bd2 {[%emt 0:00:09]} Kg2 {[%emt 0:00:00]} 69. Be1 {[%emt 0:00:16]} Kf1 {[%emt 0:00:00]} 70. Bh4 {[%emt 0:00:06]} Kg2 {[%emt 0:00:00]} 71. Bg4 {[%emt 0:00:32]} Kh2 {[%emt 0:00:00]} 72. Kf3 {[%emt 0:00:08]} Kg1 {[%emt 0:00:00]} 73. Bg3 {[%emt 0:02:33]} Kh1 {[%emt 0:00:00]} 74. Be5 {[%emt 0:03:28]} Kg1 {[%emt 0:00:00]} 75. Bh3 {[%emt 0:00:30]} Kh1 {[%emt 0:00:00]} 76. Kg3 {[%emt 0:00:17]} Kg1 {[%emt 0:00:00]} 77. Bd4+ {[%emt 0:00:11]} Kh1 {[%emt 0:00:00]} 78. Bg2# {[%emt 0:00:06]} 1-0

[Event "Fagernes Open 2021"]
[Site "Fagernes"]
[Date "2021.10.13"]
[Round "5.3"]
[White "Amundsen, Ask"]
[Black "Dahl, Torbjorn"]
[Result "0-1"]
[ECO "B02"]
[WhiteElo "1816"]
[BlackElo "1876"]
[Annotator "NA"]
[PlyCount "60"]
[EventDate "2021.10.10"]
[EventCountry "NOR"]
[SourceTitle "playchess.com"]
[Source "ChessBase"]
[SourceQuality "1"]
[TimeControl "40/5400+30:1800+30"]

1. e4 {[%emt 0:00:00]} Nf6 {[%emt 0:00:00]} 2. e5 {[%emt 0:00:00]} Nd5 {[%emt 0:00:00]} 3. c4 {[%emt 0:00:00]} Nb6 {[%emt 0:00:00]} 4. a4 {[%emt 0:00:00]} d6 {[%emt 0:07:37]} 5. a5 {[%emt 0:00:00]} N6d7 {[%emt 0:00:39]} 6. exd6 {[%emt 0:00:00]} cxd6 {[%emt 0:03:26]} 7. d4 {[%emt 0:00:00]} g6 {[%emt 0:00:00]} 8. h4 {[%emt 0:00:54]} h5 {[%emt 0:00:57]} 9. Bg5 {[%emt 0:05:48]} Bg7 {[%emt 0:01:14]} 10. Bd3 {[%emt 0:02:46]} Nc6 {[%emt 0:02:12]} 11. Nf3 {[%emt 0:05:44]} Nf6 {[%emt 0:00:33]} 12. Qc2 {[%emt 0:02:41]} O-O {[%emt 0:18:49]} 13. Qd2 {[%emt 0:07:34]} Bg4 {[%emt 0:04:53]} 14. Nh2 {[%emt 0:08:49]} Qd7 {[%emt 0:02:31]} 15. Bc2 {[%emt 0:14:07]} Qe6+ {[%emt 0:01:59]} 16. Be3 {[%emt 0:04:43]} Qxc4 {[%emt 0:07:30]} 17. Rg1 {[%emt 0:08:19]} Nb4 {[%emt 0:01:31]} 18. Nc3 {[%emt 0:05:38]} Nxc2+ {[%emt 0:00:41]} 19. Qxc2 {[%emt 0:00:03]} Rac8 {[%emt 0:01:47]} 20. f3 {[%emt 0:01:11]} Bf5 {[%emt 0:02:29]} 21. Qd2 {[%emt 0:01:05]} e5 {[%emt 0:03:33]} 22. d5 {[%emt 0:05:29]} Rfe8 {[%emt 0:11:13]} 23. g4 {[%emt 0:02:13]} Bd7 {[%emt 0:03:54]} 24. Bg5 {[%emt 0:05:41]} e4 {[%emt 0:02:27]} 25. gxh5 {[%emt 0:04:18]} exf3+ {[%emt 0:00:16]} 26. Kf2 {[%emt 0:00:54]} Re2+ {[%emt 0:01:21]} 27. Nxe2 {[%emt 0:01:10]} Ne4+ {[%emt 0:00:18]} 28. Kxf3 {[%emt 0:00:18]} Nxd2+ {[%emt 0:00:21]} 29. Bxd2 {[%emt 0:00:09]} Qxd5+ {[%emt 0:00:33]} 30. Kf2 {[%emt 0:01:12]} Qxd2 {[%emt 0:00:31]} 0-1

[Event "Fagernes Open 2021"]
[Site "Fagernes"]
[Date "2021.10.13"]
[Round "5.4"]
[White "Johannessen, Heine N"]
[Black "Edvardsen, Ragnar"]
[Result "1/2-1/2"]
[ECO "A39"]
[WhiteElo "1930"]
[BlackElo "1865"]
[Annotator "NA"]
[PlyCount "71"]
[EventDate "2021.10.10"]
[EventCountry "NOR"]
[SourceTitle "playchess.com"]
[Source "ChessBase"]
[SourceQuality "1"]
[TimeControl "40/5400+30:1800+30"]

1. d4 {[%emt 0:00:00]} Nf6 {[%emt 0:00:00]} 2. Nf3 {[%emt 0:00:00]} g6 {[%emt 0:00:00]} 3. g3 {[%emt 0:00:00]} Bg7 {[%emt 0:00:00]} 4. Bg2 {[%emt 0:00:00]} O-O {[%emt 0:00:00]} 5. c4 {[%emt 0:00:00]} c5 {[%emt 0:00:00]} 6. O-O {[%emt 0:00:00]} cxd4 {[%emt 0:00:00]} 7. Nxd4 {[%emt 0:00:00]} Nc6 $14 {[%emt 0:00:00]} 8. Nc3 {[%emt 0:00:00]} Nxd4 {[%emt 0:04:40]} 9. Qxd4 {[%emt 0:00:00]} d6 {[%emt 0:00:16]} 10. Qd2 {[%emt 0:05:00]} a6 {[%emt 0:02:26]} 11. b3 {[%emt 0:02:52]} Rb8 {[%emt 0:09:07]} 12. Bb2 {[%emt 0:16:42]} Be6 {[%emt 0:04:53]} 13. Rfd1 {[%emt 0:02:28]} Qd7 {[%emt 0:08:46]} 14. Rac1 {[%emt 0:05:33]} Rfc8 {[%emt 0:11:34]} 15. Ne4 {[%emt 0:14:30]} Nxe4 {[%emt 0:05:01]} 16. Bxe4 {[%emt 0:02:36]} Bxb2 {[%emt 0:02:15]} 17. Qxb2 {[%emt 0:00:03]} Rc5 {[%emt 0:01:07]} 18. Rd2 {[%emt 0:08:04]} Rbc8 {[%emt 0:10:18]} 19. Rcd1 {[%emt 0:07:27]} Qc7 {[%emt 0:06:02]} 20. Bd5 {[%emt 0:02:18]} Bxd5 {[%emt 0:03:30]} 21. Rxd5 {[%emt 0:00:07]} Rxd5 {[%emt 0:01:31]} 22. Rxd5 {[%emt 0:00:12]} Qb6 {[%emt 0:04:26]} 23. Qd4 {[%emt 0:03:26]} Qxd4 {[%emt 0:05:27]} 24. Rxd4 {[%emt 0:00:06]} Rc6 {[%emt 0:04:59]} 25. f4 {[%emt 0:02:35]} f5 {[%emt 0:01:53]} 26. Kf2 {[%emt 0:02:51]} Kf7 {[%emt 0:00:31]} 27. Kf3 {[%emt 0:03:53]} Kf6 {[%emt 0:00:37]} 28. e4 {[%emt 0:00:45]} h6 {[%emt 0:04:53]} 29. Rd5 {[%emt 0:02:36]} e6 {[%emt 0:05:22]} 30. Rd3 {[%emt 0:03:02]} g5 {[%emt 0:01:05]} 31. h3 {[%emt 0:01:27]} gxf4 {[%emt 0:01:35]} 32. Kxf4 {[%emt 0:03:51]} e5+ {[%emt 0:00:27]} 33. Kf3 {[%emt 0:00:16]} b5 {[%emt 0:00:17]} 34. Rc3 {[%emt 0:03:47]} Ke6 {[%emt 0:00:21]} 35. Ke3 {[%emt 0:00:52]} Kf6 {[%emt 0:00:42]} 36. Kf3 {[%emt 0:01:06]} 1/2-1/2